fUST/lending_fUST_20251203
["ID","MTS","AMOUNT","RATE_DAILY","PERIOD"]
[395750726,1764720648836,-500.0,0.00012404,2]
[395750728,1764720648845,-784.39,0.00012404,2]
[395750730,1764720648854,-500.0,0.00012404,2]
[395750732,1764720648863,-500.0,0.00012404,2]
[395750734,1764720648872,-175.88561932,0.00012404,2]
[395750736,1764720648882,-500.0,0.00012404,2]
[395750738,1764720648891,-500.0,0.00012404,2]
[395750740,1764720648900,-500.0,0.00012404,2]
[395750742,1764720648909,-1678.87,0.00012404,2]
[395750744,1764720648918,-151.0,0.00012404,2]
[395750746,1764720648927,-1000.0,0.00012404,2]
[395750748,1764720648936,-152.81286195,0.00012404,2]
[395750750,1764720648946,-500.0,0.00012404,2]
[395750752,1764720648955,-500.0,0.00012404,2]
[395750754,1764720648964,-500.0,0.00012404,2]
[395750756,1764720648973,-500.0,0.00012404,2]
[395750758,1764720648982,-685.74,0.00012404,2]
[395750760,1764720648992,-500.0,0.00012404,2]
[395750762,1764720649001,-500.0,0.00012404,2]
[395750763,1764720649010,-500.0,0.00012404,2]
[395750766,1764720649019,-500.0,0.00012404,2]
[395750767,1764720649030,-500.0,0.00012404,2]
[395750769,1764720649039,-500.0,0.00012404,2]
[395750772,1764720649049,-500.0,0.00012404,2]
[395750773,1764720649057,-500.0,0.00012404,2]
[395750775,1764720649067,-500.0,0.00012404,2]
[395750778,1764720649076,-500.0,0.00012404,2]
[395750779,1764720649085,-1142.5,0.00012404,2]
[395750781,1764720649095,-500.0,0.00012404,2]
[395750783,1764720649105,-500.0,0.00012404,2]
[395750785,1764720649114,-777.29,0.00012404,2]
[395750787,1764720649123,-500.0,0.00012404,2]
[395750789,1764720649133,-500.0,0.00012404,2]
[395750791,1764720649142,-500.0,0.00012404,2]
[395750794,1764720649152,-500.0,0.00012404,2]
[395750796,1764720649162,-500.0,0.00012404,2]
[395750798,1764720649174,-500.0,0.00012404,2]
[395750800,1764720649183,-500.0,0.00012404,2]
[395750802,1764720649192,-500.0,0.00012404,2]
[395750804,1764720649202,-500.0,0.00012404,2]
[395750806,1764720649211,-500.0,0.00012404,2]
[395750808,1764720649221,-526.85,0.00012404,2]
[395750810,1764720649230,-899.47,0.00012404,2]
[395750812,1764720649240,-500.0,0.00012404,2]
[395750814,1764720649250,-669.85,0.00012404,2]
[395750816,1764720649259,-500.0,0.00012404,2]
[395750818,1764720649268,-500.0,0.00012404,2]
[395750820,1764720649278,-463.95130972,0.00012404,2]
[395750822,1764720649288,-1041.51,0.00012404,2]
[395750824,1764720649299,-500.0,0.00012404,2]
[395750826,1764720649308,-500.0,0.00012404,2]
[395750828,1764720649317,-500.0,0.00012404,2]
[395750830,1764720649327,-500.0,0.00012404,2]
[395750832,1764720649336,-500.0,0.00012404,2]
[395750834,1764720649345,-500.0,0.00012404,2]
[395750836,1764720649355,-932.7,0.00012404,2]
[395750838,1764720649363,-546.05693792,0.00012404,2]
[395750840,1764720649373,-500.0,0.00012404,2]
[395750842,1764720649382,-500.0,0.00012404,2]
[395750844,1764720649392,-500.0,0.00012404,2]
[395750846,1764720649408,-616.34198893,0.00012404,2]
[395750848,1764720649418,-236.11370686,0.00012404,2]
[395750850,1764720649428,-500.0,0.00012404,2]
[395750852,1764720649438,-500.0,0.00012404,2]
[395750854,1764720649447,-1319.62,0.00012404,2]
[395750856,1764720649457,-500.0,0.00012404,2]
[395750858,1764720649466,-500.0,0.00012404,2]
[395750860,1764720649476,-500.0,0.00012404,2]
[395750862,1764720649486,-500.0,0.00012404,2]
[395750864,1764720649495,-500.0,0.00012404,2]
[395750866,1764720649504,-562.03,0.00012404,2]
[395750868,1764720649514,-500.0,0.00012404,2]
[395750870,1764720649523,-500.0,0.00012404,2]
[395750872,1764720649532,-524.9,0.00012404,2]
[395750874,1764720649541,-500.0,0.00012404,2]
[395750876,1764720649551,-500.0,0.00012404,2]
[395750878,1764720649560,-500.0,0.00012404,2]
[395750880,1764720649570,-500.0,0.00012404,2]
[395750882,1764720649579,-500.0,0.00012404,2]
[395750884,1764720649588,-505.93697389,0.00012404,2]
[395750886,1764720649598,-500.0,0.00012404,2]
[395750888,1764720649607,-500.0,0.00012404,2]
[395750890,1764720649617,-500.0,0.00012404,2]
[395750892,1764720649627,-500.0,0.00012404,2]
[395750894,1764720649636,-500.0,0.00012404,2]
[395750896,1764720649645,-500.0,0.00012404,2]
[395750898,1764720649655,-500.0,0.00012404,2]
[395750900,1764720649664,-426.53509886,0.00012404,2]
[395750902,1764720649673,-868.72,0.00012404,2]
[395750904,1764720649683,-500.0,0.00012404,2]
[395750906,1764720649692,-500.0,0.00012404,2]
[395750908,1764720649701,-818.09,0.00012404,2]
[395750910,1764720649710,-500.0,0.00012404,2]
[395750912,1764720649720,-500.0,0.00012404,2]
[395750914,1764720649729,-500.0,0.00012404,2]
[395750916,1764720649739,-821.87,0.00012404,2]
[395750918,1764720649748,-500.0,0.00012404,2]
[395750920,1764720649758,-500.0,0.00012404,2]
[395750922,1764720649767,-500.0,0.00012404,2]
[395750924,1764720649776,-500.0,0.00012404,2]
[395750926,1764720649786,-500.0,0.00012404,2]
[395750928,1764720649795,-1093.15,0.00012404,2]
[395750930,1764720649805,-500.0,0.00012404,2]
[395750932,1764720649814,-500.0,0.00012404,2]
[395750934,1764720649823,-351.53534815,0.00012404,2]
[395750936,1764720649833,-500.0,0.00012404,2]
[395750938,1764720649842,-500.0,0.00012404,2]
[395750940,1764720649851,-500.0,0.00012404,2]
[395750942,1764720649860,-500.0,0.00012404,2]
[395750944,1764720649870,-500.0,0.00012404,2]
[395750946,1764720649880,-550.12091119,0.00012404,2]
[395750948,1764720649889,-500.0,0.00012404,2]
[395750950,1764720649898,-500.0,0.00012404,2]
[395750952,1764720649907,-612.48,0.00012404,2]
[395750954,1764720649916,-500.0,0.00012404,2]
[395750956,1764720649925,-500.0,0.00012404,2]
[395750958,1764720649934,-500.0,0.00012404,2]
[395750960,1764720649943,-500.0,0.00012404,2]
[395750962,1764720649952,-500.0,0.00012404,2]
[395750964,1764720649961,-500.0,0.00012404,2]
[395750966,1764720649970,-544.36,0.00012404,2]
[395750968,1764720649980,-539.64,0.00012404,2]
[395750970,1764720649990,-500.0,0.00012404,2]
[395750972,1764720649999,-500.0,0.00012404,2]
[395750974,1764720650008,-500.0,0.00012404,2]
[395750976,1764720650019,-545.16,0.00012404,2]
[395750978,1764720650029,-500.0,0.00012404,2]
[395750980,1764720650038,-500.0,0.00012404,2]
[395750982,1764720650047,-500.0,0.00012404,2]
[395750984,1764720650056,-866.68,0.00012404,2]
[395750986,1764720650066,-500.0,0.00012404,2]
[395750988,1764720650076,-500.0,0.00012404,2]
[395750990,1764720650086,-500.0,0.00012404,2]
[395750992,1764720650095,-500.0,0.00012404,2]
[395750994,1764720650105,-500.0,0.00012404,2]
[395750996,1764720650114,-500.0,0.00012404,2]
[395750998,1764720650123,-500.0,0.00012404,2]
[395751000,1764720650132,-500.0,0.00012404,2]
[395751002,1764720650142,-500.0,0.00012404,2]
[395751004,1764720650151,-500.0,0.00012404,2]
[395751006,1764720650160,-500.0,0.00012404,2]
[395751009,1764720650179,-500.0,0.00012404,2]
[395751011,1764720650190,-500.0,0.00012404,2]
[395751013,1764720650199,-500.0,0.00012404,2]
[395751015,1764720650209,-500.0,0.00012404,2]
[395751017,1764720650218,-500.0,0.00012404,2]
[395751038,1764720650441,-838.06,0.00012404,2]
[395751040,1764720650451,-500.0,0.00012404,2]
[395751042,1764720650460,-500.0,0.00012404,2]
[395751044,1764720650469,-500.0,0.00012404,2]
[395751046,1764720650480,-901.82,0.00012404,2]
[395751048,1764720650491,-500.0,0.00012404,2]
[395751050,1764720650500,-500.0,0.00012404,2]
[395751052,1764720650509,-500.0,0.00012404,2]
[395751054,1764720650519,-500.0,0.00012404,2]
[395751056,1764720650528,-524.30748145,0.00012404,2]
[395751058,1764720650537,-500.0,0.00012404,2]
[395751060,1764720650546,-654.52,0.00012404,2]
[395751062,1764720650555,-980.87,0.00012404,2]
[395751064,1764720650564,-500.0,0.00012404,2]
[395751066,1764720650573,-278.44931989,0.00012405,2]
[395751068,1764720650583,-500.0,0.00012405,2]
[395751070,1764720650592,-500.0,0.00012405,2]
[395751072,1764720650602,-500.0,0.00012405,2]
[395751074,1764720650611,-500.0,0.00012405,2]
[395751076,1764720650620,-500.0,0.00012405,2]
[395751078,1764720650629,-453.31507639,0.00012405,2]
[395751080,1764720650638,-500.0,0.00012405,2]
[395751082,1764720650647,-500.0,0.00012405,2]
[395751084,1764720650656,-500.0,0.00012405,2]
[395751086,1764720650667,-690.47,0.00012405,2]
[395751088,1764720650676,-151.0,0.00012405,2]
[395751090,1764720650686,-151.0,0.00012405,2]
[395751092,1764720650696,-151.0,0.00012405,2]
[395751094,1764720650705,-151.0,0.00012405,2]
[395751096,1764720650714,-500.0,0.00012405,2]
[395751098,1764720650724,-151.0,0.00012405,2]
[395751100,1764720650734,-151.0,0.00012405,2]
[395751102,1764720650743,-500.0,0.00012405,2]
[395751104,1764720650752,-500.0,0.00012405,2]
[395751106,1764720650761,-832.21,0.00012405,2]
[395751108,1764720650771,-500.0,0.00012405,2]
[395751110,1764720650780,-500.0,0.00012405,2]
[395751112,1764720650789,-634.16,0.00012405,2]
[395751114,1764720650798,-500.0,0.00012405,2]
[395751116,1764720650807,-1331.94,0.00012405,2]
[395751118,1764720650816,-500.0,0.00012405,2]
[395751120,1764720650825,-500.0,0.00012405,2]
[395751122,1764720650835,-500.0,0.00012405,2]
[395751124,1764720650844,-750.15,0.00012405,2]
[395751126,1764720650853,-500.0,0.00012405,2]
[395751128,1764720650863,-500.0,0.00012405,2]
[395751130,1764720650872,-500.0,0.00012405,2]
[395751132,1764720650882,-1327.44,0.00012405,2]
[395751134,1764720650891,-500.0,0.00012405,2]
[395751135,1764720650900,-500.0,0.00012405,2]
[395751136,1764720650909,-500.0,0.00012405,2]
[395751137,1764720650918,-500.0,0.00012405,2]
[395751138,1764720650927,-500.0,0.00012405,2]
[395751139,1764720650940,-500.0,0.00012405,2]
[395751140,1764720650950,-1312.65,0.00012405,2]
[395751141,1764720650959,-837.13,0.00012405,2]
[395751142,1764720650968,-752.22,0.00012405,2]
[395751143,1764720650978,-2183.35,0.00012405,2]
[395751144,1764720650987,-500.0,0.00012405,2]
[395751145,1764720650996,-164.31862291,0.00012486,2]
[395751146,1764720651006,-151.0,0.000125,2]
[395751147,1764720651015,-151.0,0.000125,2]
[395751149,1764720651024,-151.0,0.000125,2]
[395751151,1764720651034,-151.0,0.000125,2]
[395751153,1764720651044,-151.0,0.000125,2]
[395751155,1764720651054,-151.0,0.000125,2]
[395751157,1764720651064,-151.0,0.000125,2]
[395751159,1764720651073,-151.0,0.000126,2]
[395751161,1764720651084,-151.0,0.000126,2]
[395751163,1764720651095,-151.0,0.000126,2]
[395751165,1764720651105,-151.0,0.000126,2]
[395751167,1764720651115,-151.0,0.000126,2]
[395751169,1764720651125,-151.0,0.000126,2]
[395751172,1764720651134,-151.0,0.000126,2]
[395751174,1764720651144,-151.0,0.000126,2]
[395751176,1764720651153,-600.0,0.00012642,2]
[395751178,1764720651163,-500.0,0.00012677,2]
[395751180,1764720651172,-879.45,0.00012677,2]
[395751181,1764720651181,-288.78675817,0.00012677,2]
[395751184,1764720651191,-500.0,0.00012677,2]
[395751186,1764720651200,-500.0,0.00012677,2]
[395751187,1764720651210,-762.74,0.00012677,2]
[395751190,1764720651219,-500.0,0.00012677,2]
[395751192,1764720651228,-500.0,0.00012677,2]
[395751194,1764720651238,-732.12,0.00012677,2]
[395751196,1764720651247,-618.06,0.00012677,2]
[395751198,1764720651257,-500.0,0.00012677,2]
[395751199,1764720651266,-500.0,0.00012677,2]
[395751201,1764720651275,-500.0,0.00012677,2]
[395751203,1764720651284,-500.0,0.00012677,2]
[395751205,1764720651294,-795.15,0.00012677,2]
[395751207,1764720651304,-500.0,0.00012677,2]
[395751209,1764720651314,-527.01,0.00012677,2]
[395751211,1764720651324,-500.0,0.00012677,2]
[395751213,1764720651335,-500.0,0.00012677,2]
[395751215,1764720651344,-500.0,0.00012677,2]
[395751217,1764720651354,-500.0,0.00012677,2]
[395751219,1764720651363,-500.0,0.00012677,2]
[395751221,1764720651373,-500.0,0.00012677,2]
[395751223,1764720651383,-500.0,0.00012677,2]
[395751225,1764720651393,-339.81146025,0.00012677,2]
[395751227,1764720651407,-803.99,0.00012677,2]
[395751229,1764720651416,-1870.84,0.00012677,2]
[395751231,1764720651426,-500.0,0.00012677,2]
[395751233,1764720651437,-500.0,0.00012677,2]
[395751235,1764720651446,-500.0,0.00012677,2]
[395751237,1764720651456,-500.0,0.00012677,2]
[395751239,1764720651465,-500.0,0.00012677,2]
[395751241,1764720651475,-500.0,0.00012677,2]
[395751243,1764720651485,-1604.91,0.00012677,2]
[395751245,1764720651494,-564.82,0.00012677,2]
[395751247,1764720651504,-500.0,0.00012677,2]
[395751249,1764720651513,-500.0,0.00012677,2]
[395751251,1764720651523,-500.0,0.00012677,2]
[395751253,1764720651532,-500.0,0.00012677,2]
[395751254,1764720651542,-526.87,0.00012677,2]
[395751256,1764720651551,-707.26,0.00012677,2]
[395751258,1764720651560,-500.0,0.00012677,2]
[395751260,1764720651569,-500.0,0.00012677,2]
[395751262,1764720651579,-500.0,0.00012677,2]
[395751264,1764720651588,-719.68,0.00012677,2]
[395751266,1764720651598,-555.14,0.00012677,2]
[395751268,1764720651607,-694.73,0.00012677,2]
[395751270,1764720651617,-500.0,0.00012677,2]
[395751272,1764720651626,-594.76,0.00012677,2]
[395751274,1764720651636,-500.0,0.00012677,2]
[395751275,1764720651647,-500.0,0.00012677,2]
[395751277,1764720651656,-500.0,0.00012677,2]
[395751279,1764720651667,-500.0,0.00012677,2]
[395751281,1764720651677,-500.0,0.00012677,2]
[395751283,1764720651687,-668.18,0.00012677,2]
[395751285,1764720651698,-500.0,0.00012677,2]
[395751287,1764720651708,-500.0,0.00012677,2]
[395751289,1764720651717,-500.0,0.00012677,2]
[395751291,1764720651727,-500.0,0.00012677,2]
[395751293,1764720651737,-194.35358634,0.00012677,2]
[395751295,1764720651747,-500.0,0.00012677,2]
[395751297,1764720651756,-500.0,0.00012677,2]
[395751299,1764720651766,-500.0,0.00012677,2]
[395751301,1764720651775,-500.0,0.00012677,2]
[395751302,1764720651784,-500.0,0.00012677,2]
[395751305,1764720651798,-530.22,0.00012677,2]
[395751307,1764720651807,-1983.31,0.00012677,2]
[395751309,1764720651816,-500.0,0.00012677,2]
[395751311,1764720651826,-500.0,0.00012677,2]
[395751312,1764720651835,-729.77,0.00012677,2]
[395751314,1764720651845,-732.84,0.00012677,2]
[395751316,1764720651854,-500.0,0.00012677,2]
[395751318,1764720651863,-500.0,0.00012677,2]
[395751320,1764720651873,-500.0,0.00012677,2]
[395751322,1764720651882,-584.69345396,0.00012677,2]
[395751324,1764720651891,-500.0,0.00012677,2]
[395751326,1764720651901,-500.0,0.00012677,2]
[395751328,1764720651910,-1446.79,0.00012677,2]
[395751330,1764720651919,-1364.23,0.00012677,2]
[395751331,1764720651929,-500.0,0.00012677,2]
[395751333,1764720651939,-632.29,0.00012677,2]
[395751335,1764720651949,-876.59,0.00012677,2]
[395751337,1764720651958,-500.0,0.00012677,2]
[395751339,1764720651968,-500.0,0.00012677,2]
[395751341,1764720651977,-828.13,0.00012677,2]
[395751343,1764720651986,-500.0,0.00012677,2]
[395751345,1764720651996,-1186.27,0.00012677,2]
[395751347,1764720652005,-500.0,0.00012677,2]
[395751349,1764720652015,-1070.09,0.00012677,2]
[395751351,1764720652024,-500.0,0.00012677,2]
[395751353,1764720652033,-715.6,0.00012677,2]
[395751355,1764720652043,-1036.08,0.00012677,2]
[395751356,1764720652053,-500.0,0.00012677,2]
[395751358,1764720652063,-500.0,0.00012677,2]
[395751360,1764720652074,-500.0,0.00012677,2]
[395751362,1764720652084,-829.96,0.00012677,2]
[395751364,1764720652094,-500.0,0.00012677,2]
[395751366,1764720652105,-500.0,0.00012677,2]
[395751368,1764720652115,-500.0,0.00012677,2]
[395751370,1764720652126,-500.0,0.00012677,2]
[395751372,1764720652135,-500.0,0.00012677,2]
[395751374,1764720652145,-1234.66,0.00012677,2]
[395751376,1764720652154,-500.0,0.00012677,2]
[395751378,1764720652164,-500.0,0.00012677,2]
[395751380,1764720652174,-500.0,0.00012677,2]
[395751382,1764720652183,-965.42,0.00012677,2]
[395751384,1764720652194,-500.0,0.00012677,2]
[395751385,1764720652205,-500.0,0.00012677,2]
[395751387,1764720652215,-941.35,0.00012677,2]
[395751389,1764720652225,-500.0,0.00012677,2]
[395751390,1764720652236,-1272.68,0.00012677,2]
[395751392,1764720652245,-500.0,0.00012677,2]
[395751394,1764720652254,-500.0,0.00012677,2]
[395751396,1764720652263,-643.02,0.00012677,2]
[395751398,1764720652272,-500.0,0.00012677,2]
[395751400,1764720652281,-500.0,0.00012677,2]
[395751402,1764720652290,-500.0,0.00012677,2]
[395751404,1764720652300,-540.96,0.00012677,2]
[395751406,1764720652309,-500.0,0.00012677,2]
[395751408,1764720652319,-511.34,0.00012677,2]
[395751410,1764720652328,-500.0,0.00012677,2]
[395751412,1764720652337,-500.0,0.00012677,2]
[395751414,1764720652347,-500.0,0.00012677,2]
[395751416,1764720652356,-500.0,0.00012677,2]
[395751418,1764720652365,-768.82,0.00012677,2]
[395751420,1764720652375,-500.0,0.00012677,2]
[395751422,1764720652384,-500.0,0.00012677,2]
[395751424,1764720652394,-500.0,0.00012677,2]
[395751425,1764720652407,-500.0,0.00012677,2]
[395751428,1764720652417,-500.0,0.00012677,2]
[395751429,1764720652427,-500.0,0.00012677,2]
[395751431,1764720652437,-500.0,0.00012677,2]
[395751433,1764720652447,-925.08,0.00012677,2]
[395751435,1764720652456,-507.76,0.00012677,2]
[395751437,1764720652468,-987.62,0.00012677,2]
[395751439,1764720652478,-581.03,0.00012677,2]
[395751441,1764720652488,-500.0,0.00012677,2]
[395751443,1764720652499,-693.01,0.00012677,2]
[395751445,1764720652509,-500.0,0.00012677,2]
[395751447,1764720652519,-500.0,0.00012677,2]
[395751449,1764720652529,-175.19226876,0.00012677,2]
[395751451,1764720652539,-500.0,0.00012677,2]
[395751453,1764720652548,-1611.79,0.00012677,2]
[395751455,1764720652558,-1314.88,0.00012677,2]
[395751457,1764720652567,-2086.09,0.00012677,2]
[395751459,1764720652577,-500.0,0.00012677,2]
[395751461,1764720652587,-500.0,0.00012677,2]
[395751463,1764720652596,-500.0,0.00012677,2]
[395751465,1764720652606,-500.0,0.00012677,2]
[395751467,1764720652615,-500.0,0.00012677,2]
[395751469,1764720652625,-500.0,0.00012677,2]
[395751471,1764720652634,-1082.95,0.00012677,2]
[395751473,1764720652646,-500.0,0.00012677,2]
[395751475,1764720652656,-500.0,0.00012677,2]
[395751477,1764720652666,-500.0,0.00012677,2]
[395751479,1764720652675,-904.58,0.00012677,2]
[395751481,1764720652685,-500.0,0.00012677,2]
[395751483,1764720652695,-399.425855,0.00012677,2]
[395751485,1764720652705,-500.0,0.00012677,2]
[395751487,1764720652714,-500.0,0.00012677,2]
[395751489,1764720652724,-500.0,0.00012677,2]
[395751491,1764720652734,-949.81,0.00012677,2]
[395751493,1764720652745,-1519.14,0.00012677,2]
[395751495,1764720652754,-500.0,0.00012677,2]
[395751497,1764720652764,-764.98,0.00012677,2]
[395751499,1764720652774,-500.0,0.00012677,2]
[395751501,1764720652784,-500.0,0.00012677,2]
[395751503,1764720652794,-500.0,0.00012677,2]
[395751505,1764720652804,-500.0,0.00012677,2]
[395751507,1764720652813,-1092.43,0.00012677,2]
[395751509,1764720652825,-1824.48,0.00012677,2]
[395751511,1764720652840,-1213.28,0.00012677,2]
[395751513,1764720652850,-500.0,0.00012677,2]
[395751515,1764720652860,-500.0,0.00012677,2]
[395751517,1764720652869,-500.0,0.00012677,2]
[395751519,1764720652879,-500.0,0.00012677,2]
[395751521,1764720652888,-618.67,0.00012677,2]
[395751523,1764720652898,-6005.35,0.00012677,2]
[395751525,1764720652907,-420.61128769,0.00012677,2]
[395751527,1764720652916,-500.0,0.00012677,2]
[395751529,1764720652925,-1853.96,0.00012677,2]
[395751531,1764720652935,-500.0,0.00012677,2]
[395751533,1764720652944,-688.41,0.00012677,2]
[395751535,1764720652954,-791.57,0.00012677,2]
[395751537,1764720652963,-500.0,0.00012677,2]
[395751539,1764720652972,-500.0,0.00012677,2]
[395751541,1764720652982,-500.0,0.00012677,2]
[395751543,1764720652992,-736.93,0.00012677,2]
[395751545,1764720653002,-500.0,0.00012677,2]
[395751547,1764720653012,-2423.99,0.00012677,2]
[395751549,1764720653022,-515.47,0.00012677,2]
[395751551,1764720653031,-500.0,0.00012677,2]
[395751553,1764720653041,-1556.52,0.00012677,2]
[395751555,1764720653052,-500.0,0.00012677,2]
[395751557,1764720653062,-575.0,0.00012677,2]
[395751559,1764720653072,-738.16,0.00012677,2]
[395751561,1764720653082,-500.0,0.00012677,2]
[395751563,1764720653092,-500.0,0.00012677,2]
[395751565,1764720653102,-832.08,0.00012677,2]
[395751567,1764720653112,-500.0,0.00012677,2]
[395751569,1764720653121,-2055.24,0.00012677,2]
[395751571,1764720653131,-765.51,0.00012677,2]
[395751573,1764720653141,-500.0,0.00012677,2]
[395751575,1764720653150,-605.83,0.00012677,2]
[395751577,1764720653160,-500.0,0.00012677,2]
[395751579,1764720653171,-489.40573199,0.00012677,2]
[395751581,1764720653181,-500.0,0.00012677,2]
[395751583,1764720653190,-500.0,0.00012677,2]
[395751585,1764720653200,-985.24,0.00012677,2]
[395751587,1764720653210,-2311.81,0.00012677,2]
[395751588,1764720653220,-636.47,0.00012677,2]
[395751589,1764720653230,-500.0,0.00012677,2]
[395751590,1764720653240,-500.0,0.00012677,2]
[395751591,1764720653250,-594.21,0.00012677,2]
[395751592,1764720653449,-2016.21,0.00012677,2]
[395751593,1764720653459,-1307.44,0.00012677,2]
[395751594,1764720653469,-917.05,0.00012677,2]
[395751595,1764720653478,-500.0,0.00012677,2]
[395751596,1764720653487,-861.2,0.00012677,2]
[395751597,1764720653496,-500.0,0.00012677,2]
[395751598,1764720653505,-500.0,0.00012677,2]
[395751599,1764720653514,-1514.01,0.00012677,2]
[395751600,1764720653523,-594.00179869,0.00012677,2]
[395751601,1764720653532,-500.0,0.00012677,2]
[395751602,1764720653541,-1061.28,0.00012677,2]
[395751603,1764720653550,-1176.4,0.00012677,2]
[395751604,1764720653559,-657.81,0.00012677,2]
[395751605,1764720653567,-500.0,0.00012677,2]
[395751606,1764720653576,-500.0,0.00012677,2]
[395751607,1764720653585,-500.0,0.00012677,2]
[395751608,1764720653595,-500.0,0.00012677,2]
[395751609,1764720653604,-500.0,0.00012677,2]
[395751610,1764720653613,-529.33,0.00012677,2]
[395751611,1764720653620,-500.0,0.00012677,2]
[395751612,1764720653630,-500.0,0.00012677,2]
[395751614,1764720653638,-559.55,0.00012677,2]
[395751616,1764720653648,-300.50025703,0.00012677,2]
[395751618,1764720653658,-500.0,0.00012677,2]
[395751620,1764720653667,-500.0,0.00012677,2]
[395751622,1764720653677,-1267.53,0.00012677,2]
[395751624,1764720653687,-1952.3,0.00012677,2]
[395751626,1764720653697,-500.0,0.00012677,2]
[395751628,1764720653707,-729.98,0.00012677,2]
[395751630,1764720653717,-400.73669185,0.00012677,2]
[395751632,1764720653727,-500.0,0.00012677,2]
[395751634,1764720653737,-500.0,0.00012677,2]
[395751636,1764720653747,-500.0,0.00012677,2]
[395751638,1764720653757,-1457.04,0.00012677,2]
[395751640,1764720653766,-500.0,0.00012677,2]
[395751642,1764720653776,-500.0,0.00012677,2]
[395751644,1764720653786,-500.0,0.00012677,2]
[395751646,1764720653795,-577.40856886,0.00012677,2]
[395751648,1764720653806,-500.0,0.00012677,2]
[395751650,1764720653817,-532.24,0.00012677,2]
[395751652,1764720653827,-1022.34,0.00012677,2]
[395751654,1764720653838,-731.6,0.00012677,2]
[395751656,1764720653848,-618.38727257,0.00012677,2]
[395751658,1764720653858,-1418.03,0.00012677,2]
[395751660,1764720653868,-1125.57,0.00012677,2]
[395751662,1764720653877,-500.0,0.00012677,2]
[395751664,1764720653887,-1058.04,0.00012677,2]
[395751666,1764720653896,-500.0,0.00012677,2]
[395751668,1764720653906,-500.0,0.00012677,2]
[395751670,1764720653915,-841.13,0.00012677,2]
[395751672,1764720653925,-6149.96,0.00012677,2]
[395751675,1764720653945,-500.0,0.00012677,2]
[395751677,1764720653957,-1697.03,0.00012677,2]
[395751679,1764720653968,-1113.29,0.00012677,2]
[395751681,1764720653978,-500.0,0.00012677,2]
[395751683,1764720653990,-500.0,0.00012677,2]
[395751685,1764720654001,-1005.89,0.00012677,2]
[395751687,1764720654011,-1911.99,0.00012677,2]
[395751689,1764720654022,-6933.66,0.00012677,2]
[395751691,1764720654032,-939.17,0.00012677,2]
[395751693,1764720654042,-500.0,0.00012677,2]
[395751695,1764720654052,-500.0,0.00012677,2]
[395751697,1764720654062,-482.49783923,0.00012677,2]
[395751699,1764720654072,-1124.71,0.00012677,2]